bitfinex/quotes_SOLUSD_20230116
["timestamp","ask_amount","ask_price","bid_price","bid_amount"]
[1673862023109,20.0,23.338,23.323,144.3508]
[1673862023304,20.0,23.339,23.323,144.3508]
[1673862023518,20.0,23.337,23.323,112.1708]
[1673862023728,17.0,23.336,23.323,112.1708]
[1673862024793,20.0,23.335,23.323,112.1708]
[1673862025006,24.88,23.33,23.311,32.2]
[1673862025312,20.0,23.329,23.31,148.7605]
[1673862025528,37.0,23.329,23.31,148.7605]
[1673862025740,37.0,23.329,23.311,20.0]
[1673862026055,37.0,23.329,23.313,20.0]
[1673862026370,20.0,23.329,23.314,32.19]
[1673862027200,20.0,23.329,23.315,20.0]
[1673862027420,20.0,23.329,23.316,32.19]
[1673862027612,49.17,23.328,23.296,111.9045]
[1673862027830,25.05,23.32,23.306,115.9969]
[1673862028033,20.0,23.319,23.306,115.9969]
[1673862029917,17.0,23.318,23.306,115.9969]
[1673862031303,25.05,23.33,23.307,32.2]
[1673862031495,25.05,23.33,23.308,20.0]
[1673862031706,20.0,23.328,23.309,32.2]
[1673862031930,20.0,23.328,23.308,20.0]
[1673862031931,20.0,23.328,23.307,32.2]
[1673862032143,20.0,23.319,23.309,113.2343]
[1673862032341,40.0,23.319,23.306,115.9969]
[1673862032553,17.0,23.318,23.306,115.9969]
[1673862032767,17.0,23.319,23.306,115.9969]
[1673862036672,25.05,23.32,23.306,115.9969]
[1673862036871,20.0,23.319,23.306,115.9969]
[1673862037725,20.0,23.319,23.307,20.0]
[1673862037941,20.0,23.319,23.306,115.9969]
[1673862038252,20.0,23.319,23.307,32.2]
[1673862038668,20.0,23.319,23.306,115.9969]
[1673862039086,17.0,23.318,23.306,115.9969]
[1673862040670,20.0,23.319,23.306,115.9969]
[1673862041921,4.93318,23.327,23.306,115.9969]
[1673862042142,20.0,23.329,23.308,20.0]
[1673862042540,20.0,23.329,23.309,32.2]
[1673862042872,20.0,23.329,23.31,20.0]
[1673862043092,20.0,23.329,23.311,32.2]
[1673862043279,20.0,23.329,23.31,52.2]
[1673862043484,20.0,23.329,23.31,32.2]
[1673862044570,20.0,23.329,23.31,52.2]
[1673862044769,17.0,23.328,23.31,52.2]
[1673862046237,17.0,23.328,23.31,32.2]
[1673862048778,17.0,23.328,23.309,116.4462]
[1673862049822,25.09,23.32,23.3,32.21]
[1673862050136,20.0,23.318,23.297,32.21]
[1673862050351,17.0,23.317,23.297,32.21]
[1673862050976,25.09,23.32,23.299,20.0]
[1673862051188,20.0,23.319,23.3,32.21]
[1673862051396,20.0,23.319,23.301,20.0]
[1673862051607,20.0,23.319,23.302,32.21]
[1673862052228,20.0,23.319,23.303,20.0]
[1673862052430,20.0,23.319,23.305,20.0]
[1673862052642,20.0,23.319,23.306,32.2]
[1673862054030,17.0,23.318,23.306,32.2]
[1673862054242,17.0,23.318,23.304,32.2]
[1673862054443,17.0,23.318,23.3,32.21]
[1673862054763,17.0,23.318,23.299,32.21]
[1673862055287,17.0,23.318,23.299,52.21]
[1673862057498,17.0,23.318,23.3,20.0]
[1673862057708,17.0,23.318,23.302,20.0]
[1673862057925,17.0,23.318,23.298,150.0763]
[1673862058123,17.0,23.318,23.298,117.8663]
[1673862058741,17.0,23.318,23.299,20.0]
[1673862058962,17.0,23.318,23.3,32.21]
[1673862059381,17.0,23.318,23.299,52.21]
[1673862060135,4.93318,23.327,23.3,25.01]
[1673862060349,24.9,23.33,23.301,72.21]
[1673862061389,20.0,23.329,23.301,72.21]
[1673862061701,24.9,23.33,23.301,72.21]
[1673862062128,20.0,23.329,23.301,72.21]
[1673862062336,20.0,23.328,23.301,72.21]
[1673862062756,17.0,23.327,23.301,72.21]
[1673862063068,17.0,23.327,23.301,52.21]
[1673862063498,32.17,23.328,23.302,20.0]
[1673862063695,20.0,23.329,23.303,52.21]
[1673862063911,20.0,23.329,23.304,20.0]
[1673862064245,20.0,23.329,23.306,20.0]
[1673862064441,20.0,23.329,23.307,32.2]
[1673862064849,17.0,23.328,23.307,32.2]
[1673862065060,20.0,23.327,23.307,32.2]
[1673862065276,32.17,23.328,23.304,32.2]
[1673862065498,20.0,23.329,23.305,20.0]
[1673862065702,20.0,23.329,23.306,32.2]
[1673862065905,32.17,23.328,23.302,32.21]
[1673862066122,20.0,23.327,23.302,32.21]
[1673862066446,49.17,23.326,23.302,32.21]
[1673862066657,20.0,23.325,23.302,32.21]
[1673862066847,17.0,23.324,23.302,32.21]
[1673862067061,20.0,23.323,23.302,32.21]
[1673862067274,37.0,23.322,23.299,32.21]
[1673862068233,25.09,23.32,23.293,32.22]
[1673862068418,94.11318,23.319,23.287,32.23]
[1673862068846,4.93318,23.318,23.287,32.23]
[1673862069179,49.19,23.317,23.288,20.0]
[1673862069391,20.0,23.316,23.289,32.23]
[1673862069607,49.19,23.315,23.29,20.0]
[1673862069823,20.0,23.314,23.291,32.22]
[1673862070130,17.0,23.313,23.291,32.22]
[1673862070348,20.0,23.312,23.291,32.22]
[1673862070535,24.85,23.31,23.291,111.7755]
[1673862070746,20.0,23.309,23.292,20.0]
[1673862070972,17.0,23.308,23.293,32.22]
[1673862072444,20.0,23.309,23.293,32.22]
[1673862072656,20.0,23.309,23.294,20.0]
[1673862072859,20.0,23.309,23.293,32.22]
[1673862073476,20.0,23.309,23.297,20.0]
[1673862073699,4.93318,23.317,23.297,20.0]
[1673862073908,17.0,23.316,23.297,20.0]
[1673862074100,20.0,23.315,23.297,20.0]
[1673862074316,32.17,23.328,23.298,41.95357942]
[1673862074548,20.0,23.319,23.299,20.0]
[1673862074735,20.0,23.319,23.3,32.21]
[1673862075167,20.0,23.319,23.302,20.0]
[1673862075377,32.18,23.325,23.302,52.21]
[1673862075589,17.0,23.319,23.302,52.21]
[1673862076326,17.0,23.319,23.302,32.21]
[1673862076543,17.0,23.319,23.301,110.1916]
[1673862077066,32.18,23.325,23.302,20.0]
[1673862077273,32.17,23.327,23.303,32.21]
[1673862077487,32.17,23.327,23.304,20.0]
[1673862077700,20.0,23.319,23.302,32.21]
[1673862077895,20.0,23.319,23.301,110.1916]
[1673862078755,17.0,23.318,23.301,110.1916]
[1673862079285,17.0,23.318,23.298,32.21]
[1673862079480,17.0,23.318,23.295,32.22]
[1673862079676,17.0,23.318,23.296,111.9045]
[1673862079881,25.09,23.31,23.287,32.23]
[1673862080212,20.0,23.308,23.287,32.23]
[1673862080413,25.09,23.3,23.285,115.3687]
[1673862080623,20.0,23.299,23.285,115.3687]
[1673862080948,17.0,23.298,23.285,115.3687]
[1673862081160,17.0,23.298,23.283,112.8087]
[1673862081350,17.0,23.298,23.277,32.24]
[1673862081560,20.0,23.299,23.278,20.0]
[1673862081790,20.0,23.304,23.283,9.74357942]
[1673862082000,24.85,23.31,23.285,20.0]
[1673862082001,57.13318,23.307,23.285,20.0]
[1673862082209,24.93318,23.307,23.285,20.0]
[1673862082420,4.93318,23.307,23.284,32.23]
[1673862082633,25.09,23.3,23.283,118.2577]
[1673862082835,37.0,23.299,23.278,52.24]
[1673862083043,41.93318,23.299,23.278,52.24]
[1673862083776,41.93318,23.299,23.278,61.98357942]
[1673862084301,41.93318,23.299,23.278,52.24]
[1673862084729,41.93318,23.299,23.278,61.98357942]
[1673862085372,24.93318,23.299,23.278,61.98357942]
[1673862086423,24.93318,23.299,23.278,32.24]
[1673862086638,24.93318,23.299,23.277,32.24]
[1673862086824,24.93318,23.299,23.278,20.0]
[1673862086825,17.0,23.298,23.278,20.0]
[1673862087035,17.0,23.298,23.279,32.24]
[1673862087895,17.0,23.298,23.278,32.24]
[1673862088097,4.93318,23.297,23.276,115.3687]
[1673862088419,17.0,23.296,23.276,115.3687]
[1673862088621,21.93318,23.296,23.276,115.3687]
[1673862088943,21.93318,23.296,23.277,32.24]
[1673862089159,21.93318,23.296,23.276,115.3687]
[1673862089470,21.93318,23.296,23.277,32.24]
[1673862089684,4.93318,23.296,23.277,32.24]
[1673862089874,4.93318,23.296,23.277,20.0]
[1673862090085,20.0,23.299,23.278,32.24]
[1673862090303,52.21,23.299,23.278,32.24]
[1673862090512,52.21,23.299,23.277,32.24]
[1673862090727,4.93318,23.298,23.276,115.3687]
[1673862090940,20.0,23.297,23.276,115.3687]
[1673862091142,32.21,23.297,23.277,32.24]
[1673862091352,32.21,23.297,23.276,115.3687]
[1673862091353,41.93318,23.296,23.276,115.3687]
[1673862091558,25.09,23.29,23.276,115.3687]
[1673862091768,37.0,23.289,23.276,115.3687]
[1673862091980,37.0,23.289,23.272,32.25]
[1673862092195,37.0,23.289,23.271,32.25]
[1673862092526,4.93318,23.288,23.27,118.6269]
[1673862092741,17.0,23.287,23.271,32.25]
[1673862092927,17.0,23.287,23.271,20.0]
[1673862093659,17.0,23.287,23.269,32.25]
[1673862093899,4.93318,23.286,23.264,140.55]
[1673862094083,17.0,23.285,23.265,20.0]
[1673862094417,21.93318,23.285,23.265,20.0]
[1673862094631,20.0,23.284,23.265,20.0]
[1673862094833,17.0,23.283,23.265,20.0]
[1673862095053,17.0,23.283,23.265,52.26]
[1673862095238,20.0,23.282,23.264,140.55]
[1673862095448,24.9,23.28,23.264,108.29]
[1673862095659,20.0,23.279,23.264,108.29]
[1673862095879,17.0,23.278,23.264,108.29]
[1673862099141,20.0,23.279,23.264,108.29]
[1673862099358,20.0,23.279,23.265,20.0]
[1673862099548,20.0,23.279,23.266,32.26]
[1673862100180,20.0,23.279,23.265,52.26]
[1673862100509,20.0,23.279,23.265,20.0]
[1673862100699,20.0,23.279,23.266,32.26]
[1673862100907,20.0,23.279,23.265,52.26]
[1673862101140,20.0,23.279,23.264,108.29]
[1673862101339,24.93318,23.279,23.264,108.29]
[1673862101551,24.93318,23.279,23.258,32.27]
[1673862101871,21.93318,23.278,23.259,20.0]
[1673862102914,4.93318,23.277,23.259,20.0]
[1673862103226,4.93318,23.277,23.258,20.0]
[1673862103434,17.0,23.276,23.258,20.0]
[1673862103641,4.93318,23.277,23.258,52.27]
[1673862103863,20.0,23.279,23.258,52.27]
[1673862104273,20.0,23.279,23.258,32.27]
[1673862104484,4.93318,23.278,23.257,270.2372]
[1673862104697,37.17318,23.278,23.258,20.0]
[1673862105008,20.0,23.279,23.259,32.27]
[1673862105222,20.0,23.279,23.26,20.0]
[1673862105439,20.0,23.288,23.262,20.0]
[1673862105653,25.09,23.28,23.263,32.26]
[1673862105855,20.0,23.279,23.261,32.26]
[1673862106070,4.93318,23.278,23.259,20.0]
[1673862106389,4.93318,23.278,23.258,32.27]
[1673862106591,17.0,23.277,23.258,32.27]
[1673862106800,17.0,23.277,23.258,20.0]
[1673862107000,17.0,23.277,23.259,32.27]
[1673862107210,21.93318,23.277,23.258,20.0]
[1673862107642,21.93318,23.277,23.258,32.27]
[1673862107865,21.93318,23.277,23.259,20.0]
[1673862108410,4.93318,23.277,23.26,20.0]
[1673862108580,25.09,23.29,23.26,77.12]
[1673862108792,20.0,23.289,23.261,29.74357942]
[1673862109132,20.0,23.289,23.262,42.00357942]
[1673862109433,20.0,23.289,23.264,20.0]
[1673862109627,20.0,23.288,23.265,32.26]
[1673862109843,20.0,23.289,23.264,42.00357942]
[1673862110058,20.0,23.289,23.265,20.0]
[1673862110386,20.0,23.289,23.267,20.0]
[1673862110701,20.0,23.289,23.269,20.0]
[1673862110907,20.0,23.289,23.27,147.3954]
[1673862111226,20.0,23.289,23.271,20.0]
[1673862111422,20.0,23.289,23.272,32.25]
[1673862111833,32.21,23.299,23.273,20.0]
[1673862112049,25.09,23.3,23.274,32.25]
[1673862112377,25.09,23.3,23.275,9.74357942]
[1673862112699,25.09,23.3,23.276,52.24]
[1673862112910,25.09,23.3,23.276,170.6992]
[1673862113227,20.0,23.299,23.276,170.6992]
[1673862114588,20.0,23.299,23.276,138.4592]
[1673862114904,17.0,23.298,23.276,138.4592]
[1673862115123,49.21,23.298,23.276,138.4592]
[1673862115429,17.0,23.298,23.277,32.24]
[1673862115837,52.21,23.299,23.277,32.24]
[1673862116061,52.21,23.299,23.278,20.0]
[1673862116266,20.0,23.299,23.279,32.24]
[1673862116686,20.0,23.299,23.278,20.0]
[1673862117228,20.0,23.299,23.276,150.6992]
[1673862117441,17.0,23.298,23.276,150.6992]
[1673862117657,32.21,23.297,23.276,118.4592]
[1673862117861,17.0,23.296,23.276,118.4592]
[1673862118176,17.0,23.296,23.277,20.0]
[1673862118373,17.0,23.297,23.277,20.0]
[1673862118793,17.0,23.297,23.276,118.4592]
[1673862119005,25.09,23.29,23.276,118.4592]
[1673862119215,25.09,23.29,23.26,24.85]
[1673862119216,37.0,23.289,23.266,32.26]
[1673862119421,37.0,23.289,23.266,141.8266]
[1673862119636,69.23,23.289,23.266,141.8266]
[1673862119861,37.0,23.289,23.267,20.0]
[1673862120285,37.0,23.289,23.268,32.25]
[1673862120692,37.0,23.289,23.271,20.0]
[1673862120909,37.0,23.289,23.271,52.25]
[1673862122481,20.0,23.289,23.271,52.25]
[1673862122901,20.0,23.289,23.272,9.74357942]
[1673862123119,20.0,23.289,23.273,32.25]
[1673862123333,20.0,23.289,23.274,20.0]
[1673862123654,20.0,23.298,23.274,20.0]
[1673862123853,32.21,23.297,23.274,20.0]
[1673862124068,20.0,23.296,23.274,20.0]
[1673862124263,32.21,23.297,23.274,20.0]
[1673862124472,25.09,23.3,23.275,41.98357942]
[1673862124705,20.0,23.299,23.276,20.0]
[1673862124925,17.0,23.298,23.278,20.0]
[1673862125229,17.0,23.298,23.279,110.1667]
[1673862125437,49.21,23.299,23.28,20.0]
[1673862125647,17.0,23.299,23.28,20.0]
[1673862127644,17.0,23.299,23.279,110.1667]
[1673862127960,49.21,23.299,23.279,110.1667]
[1673862128160,17.0,23.299,23.279,110.1667]
[1673862129107,25.09,23.3,23.28,20.0]
[1673862129320,20.0,23.299,23.281,32.24]
[1673862129737,32.2,23.307,23.282,29.74357942]
[1673862129942,25.09,23.31,23.283,32.23]
[1673862130151,20.0,23.309,23.284,20.0]
[1673862130361,20.0,23.309,23.285,32.23]
[1673862130571,20.0,23.309,23.286,20.0]
[1673862130778,20.0,23.309,23.287,32.23]
[1673862130995,20.0,23.309,23.288,20.0]
[1673862131207,17.0,23.308,23.289,140.3347]
[1673862131955,25.09,23.31,23.29,20.0]
[1673862132472,25.09,23.31,23.291,32.22]
[1673862132892,63.5,23.326,23.292,9.74357942]
[1673862132893,32.18,23.319,23.292,9.74357942]
[1673862133109,32.18,23.319,23.294,20.0]
[1673862133313,20.0,23.318,23.293,32.22]
[1673862133528,25.09,23.31,23.291,32.22]
[1673862133728,20.0,23.309,23.291,32.22]
[1673862134460,17.0,23.308,23.291,32.22]
[1673862134663,17.0,23.308,23.291,41.96357942]
[1673862134999,17.0,23.308,23.292,20.0]
[1673862136153,17.0,23.308,23.291,41.96357942]
[1673862136364,17.0,23.308,23.291,9.74357942]
[1673862136972,17.0,23.308,23.29,52.22]
[1673862137188,32.19,23.314,23.291,29.74357942]
[1673862137502,32.18,23.319,23.293,20.0]
[1673862137829,32.18,23.319,23.289,108.1047]
[1673862137830,20.0,23.309,23.289,108.1047]
[1673862138023,32.2,23.308,23.289,108.1047]
[1673862138450,32.2,23.309,23.289,108.1047]
[1673862138969,25.09,23.31,23.29,9.74357942]
[1673862139205,20.0,23.309,23.29,9.74357942]
[1673862139511,20.0,23.309,23.289,108.1047]
[1673862139924,52.2,23.309,23.289,108.1047]
[1673862140559,17.0,23.308,23.289,108.1047]
[1673862140749,25.13,23.3,23.289,108.1047]
[1673862140963,37.0,23.299,23.289,108.1047]
[1673862142131,37.0,23.299,23.283,110.8696]
[1673862143723,37.0,23.299,23.27,140.2754]
[1673862143724,52.21,23.298,23.272,32.25]
[1673862144029,20.0,23.296,23.273,20.0]
[1673862144229,69.22,23.295,23.273,20.0]
[1673862144439,17.0,23.294,23.273,20.0]
[1673862144756,20.0,23.293,23.273,20.0]
[1673862144972,17.0,23.292,23.273,20.0]
[1673862145185,20.0,23.291,23.272,115.4688]
[1673862145386,17.0,23.29,23.272,115.4688]
[1673862145602,20.0,23.289,23.272,115.4688]
[1673862145943,17.0,23.288,23.272,115.4688]
[1673862147168,32.21,23.301,23.273,32.25]
[1673862147386,20.0,23.299,23.274,20.0]
[1673862147604,20.0,23.299,23.275,32.24]
[1673862147808,20.0,23.299,23.276,20.0]
[1673862148015,20.0,23.299,23.277,32.24]
[1673862148214,20.0,23.299,23.278,20.0]
[1673862148425,20.0,23.299,23.279,32.24]
[1673862149392,17.0,23.298,23.279,32.24]
[1673862149613,20.0,23.299,23.279,41.72337233]
[1673862149825,32.2,23.308,23.28,25.13]
[1673862150042,25.13,23.31,23.281,52.24]
[1673862150237,20.0,23.309,23.282,108.1554]
[1673862150455,20.0,23.309,23.283,52.23]
[1673862150785,32.2,23.308,23.283,52.23]
[1673862150961,32.2,23.308,23.283,163.7246]
[1673862151172,20.0,23.307,23.283,153.20797233]
[1673862151385,32.2,23.308,23.283,153.20797233]
[1673862151709,20.0,23.309,23.283,143.7246]
[1673862151925,20.0,23.308,23.283,153.20797233]
[1673862152134,20.0,23.308,23.283,143.7246]
[1673862152329,25.13,23.3,23.283,111.4946]
[1673862152534,20.0,23.299,23.283,111.4946]
[1673862152750,17.0,23.298,23.283,111.4946]
[1673862158654,20.0,23.299,23.283,111.4946]
[1673862159073,20.0,23.299,23.283,143.7246]
[1673862160542,20.0,23.299,23.283,111.4946]
[1673862160870,17.0,23.298,23.283,111.4946]
[1673862162865,25.13,23.29,23.271,32.25]
[1673862163064,37.0,23.289,23.272,114.3046]
[1673862163902,37.0,23.289,23.273,20.0]
[1673862164113,37.0,23.289,23.273,52.25]
[1673862164323,37.0,23.289,23.272,114.3046]
[1673862164859,37.0,23.289,23.273,52.25]
[1673862165263,37.0,23.289,23.273,32.25]
[1673862165476,37.0,23.289,23.272,114.3046]
[1673862165911,37.0,23.289,23.272,146.5546]
[1673862166120,20.0,23.288,23.272,114.3046]
[1673862166315,49.23,23.287,23.272,114.3046]
[1673862166859,49.23,23.287,23.261,32.26]
[1673862167061,24.98,23.28,23.262,114.2722]
[1673862167268,57.0,23.279,23.262,114.2722]
[1673862168312,57.0,23.279,23.258,32.27]
[1673862168531,57.0,23.279,23.245,20.0]
[1673862168532,32.24,23.278,23.255,131.485491]
[1673862168735,17.0,23.277,23.255,131.485491]
[1673862168956,17.0,23.277,23.255,163.755491]
[1673862169587,20.0,23.276,23.255,131.485491]
[1673862169796,17.0,23.275,23.255,163.755491]
[1673862169988,25.16,23.27,23.246,32.28]
[1673862170196,307.13009542,23.257,23.222,128.54325507]
[1673862170416,24.98,23.24,23.228,17.212269]
[1673862170729,137.30768935,23.239,23.228,17.212269]
[1673862170944,20.0,23.239,23.228,17.212269]
[1673862171365,59.32876827,23.238,23.228,17.212269]
[1673862171581,112.74529143,23.238,23.228,17.212269]
[1673862171900,145.04529143,23.238,23.228,17.212269]
[1673862172113,20.0,23.238,23.228,17.212269]
[1673862172424,17.0,23.237,23.228,17.212269]
[1673862172617,25.02,23.25,23.228,17.212269]
[1673862172826,32.27,23.259,23.229,32.31]
[1673862173040,25.27,23.26,23.231,20.0]
[1673862173266,20.0,23.259,23.232,32.3]
[1673862173488,32.27,23.258,23.231,32.31]
[1673862173676,32.27,23.258,23.23,32.31]
[1673862174100,20.0,23.257,23.23,32.31]
[1673862174414,49.27,23.256,23.23,32.31]
[1673862174825,20.0,23.255,23.23,32.31]
[1673862175040,17.0,23.254,23.231,20.0]
[1673862175251,32.27,23.256,23.232,32.3]
[1673862175478,32.27,23.259,23.232,32.3]
[1673862175690,25.27,23.26,23.233,20.0]
[1673862175892,25.27,23.26,23.234,32.3]
[1673862176090,25.01,23.27,23.235,20.0]
[1673862176298,32.24,23.278,23.235,20.0]
[1673862176299,32.24,23.278,23.24,24.97]
[1673862176530,32.24,23.279,23.241,52.29]
[1673862176743,32.24,23.279,23.242,113.9057]
[1673862177055,32.24,23.279,23.244,20.0]
[1673862177260,32.24,23.279,23.246,20.0]
[1673862177481,20.0,23.278,23.247,32.28]
[1673862177680,32.24,23.277,23.247,32.28]
[1673862177893,20.0,23.276,23.247,32.28]
[1673862178104,32.24,23.275,23.248,20.0]
[1673862178427,20.0,23.274,23.25,20.0]
[1673862178639,20.0,23.274,23.252,20.0]
[1673862178947,20.0,23.278,23.252,20.0]
[1673862179140,32.24,23.277,23.252,20.0]
[1673862179352,20.0,23.276,23.252,20.0]
[1673862179557,32.24,23.277,23.253,32.28]
[1673862179772,32.24,23.279,23.253,32.28]
[1673862179992,32.24,23.279,23.254,20.0]
[1673862180206,32.24,23.279,23.256,20.0]
[1673862180615,25.27,23.28,23.257,32.27]
[1673862180825,32.23,23.287,23.257,32.27]
[1673862181150,32.23,23.289,23.258,20.0]
[1673862181350,32.23,23.289,23.259,32.27]
[1673862181884,32.23,23.289,23.26,20.0]
[1673862182086,32.23,23.289,23.261,32.26]
[1673862182300,25.02,23.28,23.261,32.26]
[1673862182504,25.02,23.28,23.26,20.0]
[1673862182715,17.0,23.279,23.259,32.27]
[1673862182931,17.0,23.279,23.257,118.4054]
[1673862182932,52.24,23.278,23.257,118.4054]
[1673862183260,17.0,23.277,23.257,118.4054]
[1673862184858,20.0,23.276,23.257,118.4054]
[1673862185043,17.0,23.275,23.257,118.4054]
[1673862185253,20.0,23.274,23.257,118.4054]
[1673862185573,20.0,23.269,23.251,32.28]
[1673862185771,17.0,23.268,23.247,111.0384]
[1673862185987,20.0,23.267,23.248,32.28]
[1673862186200,20.0,23.267,23.247,111.0384]
[1673862186201,17.0,23.266,23.247,111.0384]
[1673862186743,25.21,23.26,23.247,111.0384]
[1673862186927,17.0,23.259,23.247,111.0384]
[1673862187773,17.0,23.259,23.244,116.6743]
[1673862188198,17.0,23.259,23.238,32.3]
[1673862188409,20.0,23.258,23.237,111.0384]
[1673862188731,20.0,23.249,23.237,111.0384]
[1673862188921,17.0,23.248,23.237,111.0384]
[1673862189343,25.23,23.25,23.237,111.0384]
[1673862190732,17.0,23.249,23.237,111.0384]
[1673862191559,17.0,23.249,23.231,116.6743]
[1673862192509,49.28,23.249,23.231,116.6743]
[1673862192710,20.0,23.248,23.225,32.31]
[1673862193040,20.0,23.248,23.224,32.32]
[1673862193041,17.0,23.247,23.224,32.32]
[1673862193437,17.0,23.248,23.224,32.32]
[1673862193654,32.28,23.247,23.224,32.32]
[1673862193885,17.0,23.246,23.224,32.32]
[1673862194096,52.29,23.245,23.224,32.32]
[1673862194407,17.0,23.244,23.228,17.234883]
[1673862194753,25.21,23.24,23.228,17.234883]
[1673862194944,17.0,23.239,23.228,17.234883]
[1673862196729,25.21,23.24,23.228,17.234883]
[1673862199155,100.92,23.28,23.229,61.30253104]
[1673862199458,25.02,23.26,23.23,34.22253104]
[1673862199676,25.02,23.26,23.231,52.31]
[1673862199883,25.02,23.26,23.232,20.0]
[1673862200095,25.02,23.26,23.233,52.3]
[1673862200310,25.02,23.26,23.233,61.29253104]
[1673862200514,25.02,23.26,23.234,8.99253104]
[1673862200725,32.27,23.259,23.235,32.3]
[1673862201161,32.27,23.259,23.234,32.3]
[1673862201580,32.27,23.259,23.23,32.31]
[1673862201900,37.0,23.258,23.23,32.31]
[1673862202229,20.0,23.249,23.229,32.31]
[1673862202420,17.0,23.248,23.229,32.31]
[1673862202633,17.0,23.248,23.229,41.30253104]
[1673862202824,17.0,23.249,23.23,20.0]
[1673862203036,17.0,23.249,23.231,32.31]
[1673862203768,17.0,23.249,23.23,32.31]
[1673862203978,17.0,23.249,23.229,32.31]
[1673862205666,32.27,23.255,23.231,20.0]
[1673862205881,32.27,23.259,23.232,32.3]
[1673862206082,32.27,23.259,23.233,20.0]
[1673862206292,32.27,23.259,23.234,52.3]
[1673862207042,17.0,23.258,23.234,20.0]
[1673862207255,32.27,23.257,23.234,20.0]
[1673862207458,17.0,23.256,23.235,20.0]
[1673862207674,17.0,23.256,23.237,20.0]
[1673862207983,17.0,23.258,23.237,20.0]
[1673862208192,32.26,23.266,23.238,32.3]
[1673862208517,32.26,23.266,23.239,27.99773573]
[1673862208711,32.25,23.268,23.24,32.29]
[1673862208920,20.0,23.267,23.241,20.0]
[1673862209132,32.26,23.266,23.242,32.29]
[1673862209442,20.0,23.265,23.243,20.0]
[1673862209650,32.25,23.269,23.243,20.0]
[1673862209882,32.24,23.278,23.245,20.0]
[1673862210070,20.0,23.277,23.246,32.28]
[1673862210280,32.24,23.276,23.246,40.27773573]